Cogmind - Beta 13 @@@ ROGUE MODE // 2024.04.11 @ 13:19:51 Player: m1m1c Result: Destroyed by G-47 Trooper with Particle Gun Performance ------------- Evolutions (1) 500 Regions Visited (2) 400 Robots Destroyed (38) 190 Value Destroyed (720) 720 Prototype IDs (0) 0 Alien Tech Used (0) 0 Bonus (33) 33 TOTAL SCORE: 1843 Bonus ------- High Alert Combat Kills 33 Cogmind --------- Core Integrity 0/400 Matter 18/300 Energy 119/125 System Corruption 0% Temperature Cool (12) Movement Walking (120) Location -9/Materials Parts ------- > --- POWER (1) -------- Light Ion Engine > --- PROPULSION (3) --- Aluminum Leg Aluminum Leg Aluminum Leg > --- UTILITY (3) ------ Large Storage Unit Transport Network Coupler > --- WEAPON (2) ------- Shotgun > --- INVENTORY (15) --- Aluminum Leg Aluminum Leg Compact Wheel Small Storage Unit Weight Redist. System Signal Interpreter Light Armor Plating Shield Generator Field Recycling Unit (0) Shotgun Mini Grenade Launcher Peak State ------------ > --- POWER ------------ Light Ion Engine > --- PROPULSION ------- Aluminum Leg Compact Wheel Compact Wheel > --- UTILITY ---------- Large Storage Unit Sensor Array Transport Network Coupler > --- WEAPON ----------- Shotgun Mini Grenade Launcher > --- INVENTORY -------- Small Storage Unit Weight Redist. System Signal Interpreter Light Armor Plating Shield Generator Field Recycling Unit Shotgun [Rating: 12] Favorites ----------- Power Light Ion Engine Engine Light Ion Engine Propulsion Aluminum Leg Leg Aluminum Leg Wheel Compact Wheel Utility Large Storage Unit Device Sensor Array Storage Large Storage Unit Processor Transport Network Coupler Weapon EM Pulse Gun Energy Gun EM Pulse Gun Ballistic Gun Shotgun Launcher Mini Grenade Launcher Build | -11 -10 -9 ------- Run | Yrd Mat Mat Slots Evolved 2 | . . 2 Power . | . . . Propulsion 1 | . . 1 Utility 1 | . . 1 Weapon . | . . . Parts Attached 27 | 6 3 18 Power 2 | 1 . 1 Engine 2 | 1 . 1 Core . | . . . Reactor . | . . . Propulsion 11 | 2 1 8 Treads . | . . . Leg 8 | 2 1 5 Wheel 3 | . . 3 Hover . | . . . Flight . | . . . Utility 5 | 1 . 4 Device 2 | . . 2 Storage 2 | 1 . 1 Processor 1 | . . 1 Hackware . | . . . Protection . | . . . Artifact . | . . . Weapon 9 | 2 2 5 Energy Gun 6 | 2 2 2 Energy Cannon . | . . . Ballistic Gun 1 | . . 1 Ballistic Cannon . | . . . Launcher 2 | . . 2 Special Weapon . | . . . Impact Weapon . | . . . Slashing Weapon . | . . . Piercing Weapon . | . . . Special Melee Weapon . | . . . Unidentified Prototypes . | . . . Parts Lost 11 | . . 11 Power 1 | . . 1 Propulsion 4 | . . 4 Utility 1 | . . 1 Weapon 5 | . . 5 Highest Loss Streak 5 | . . 5 To Critical Strikes . | . . . Average Slot Usage (%) 75 | . 83 71 Engine 9 | . 14 7 Leg 19 | . 27 14 Wheel 2 | . . 3 Device 5 | . . 8 Storage 12 | . 14 11 Processor 7 | . . 10 Energy Gun 10 | . 26 1 Ballistic Gun 2 | . . 3 Launcher 7 | . . 10 Naked Turns . | . . . Heaviest Build 28 | 12 12 28 Greatest Support 32 | 20 20 32 Greatest Overweight (x) 7 | 1 . 7 Average Overweight (x) . | . . 1 Largest Inventory Capacity 15 | 8 8 15 Average Capacity 12 | 7 8 14 Most Carried 11 | . 8 11 Average Carried 5 | . 3 6 Final Capacity 15 | 8 8 15 Final Carried 11 | . 8 11 Class Distribution -------------------- 84% | Mutant 15% | Scavenger-Mutant Dominant Class ---------------- Mutant | -10/Materials Mutant | -9/Materials Resources | -11 -10 -9 ----------- Run | Yrd Mat Mat Matter Collected 557 | 194 66 297 Remotely . | . . . Salvage Created 955 | . 381 574 Parts 70 | . 28 42 Haulers Intercepted 3 | . 1 2 Recyclers Shooed 3 | . 2 1 Parts Field Recycled . | . . . Retrieved Matter . | . . . Parts Self-Destructed . | . . . Prevented . | . . . Kills | -11 -10 -9 ------- Run | Yrd Mat Mat Combat Hostiles Destroyed 18 | . 5 13 Guns 5 | . 5 . AOE 13 | . . 13 Classes Destroyed 9 | . 5 4 Worker 2 | . . 2 Builder 5 | . . 5 Tunneler 2 | . 1 1 Hauler 3 | . 1 2 Recycler 4 | . 2 2 Watcher 4 | . . 4 Swarmer 6 | . 3 3 Grunt 8 | . 2 6 Sentry 4 | . . 4 Best Kill Streak 10 | . 4 10 Combat Bots Only 4 | . 4 4 Max Kills in Single Turn 3 | . 1 3 Gunslinging . | . . . Exploded 2 | . . 2 Melee . | . . . Uniques/NPCs Destroyed . | . . . Combat | -11 -10 -9 -------- Run | Yrd Mat Mat Hostile Shots Fired 131 | . 24 107 Missed 51 | . 11 40 Damage Taken 1432 | . 143 1289 Core 437 | . 37 400 Absorbed by Shields . | . . . Core Remaining (%) 92 | 100 85 . Volleys Fired 70 | . 23 47 Largest 2 | . 2 2 Hottest 80 | . 80 75 Shots Fired 107 | . 45 62 Gun 68 | . 45 23 Cannon . | . . . Launcher 39 | . . 39 Special . | . . . Kinetic 12 | . . 12 Thermal . | . . . Explosive 39 | . . 39 Electromagnetic 56 | . 45 11 Robot Hit Streak 16 | . 5 16 Robot Miss Streak 5 | . 5 4 Penetration Max . | . . . Secondary Targets 2 | . 2 . Max Gunslinging Chain 1 | . 1 . Shots Hit Robots 48 | . 22 26 Core Hits 63 | . 12 51 Critical Kills . | . . . Critical Parts Destroyed . | . . . Critical Strikes . | . . . Melee Attacks . | . . . Impact . | . . . Slashing . | . . . Piercing . | . . . Sneak Attacks . | . . . Combat Hostiles . | . . . Follow-up Attacks . | . . . Damage Inflicted 2788 | . 418 2370 Guns 440 | . 338 102 Cannons . | . . . Explosions 2319 | . 73 2246 Melee . | . . . Ramming 29 | . 7 22 Kinetic 10 | . . 10 Thermal 127 | . 73 54 Explosive 2192 | . . 2192 Electromagnetic 430 | . 338 92 Impact . | . . . Slashing . | . . . Piercing . | . . . Highest Corruption . | . . . Average Corruption . | . . . Corruption Purged . | . . . Corruption Blocked . | . . . Overload Shots . | . . . Overflow Damage 40 | . . 40 Projectiles . | . . . Explosions 40 | . . 40 Melee . | . . . Knockbacks . | . . . Impact . | . . . Kinetic . | . . . Secondary . | . . . Self-Inflicted Damage 460 | . 17 443 Shots 15 | . 1 14 Rammed . | . . . Targets Rammed 4 | . 1 3 Kicked 4 | . 1 3 Crushed . | . . . Highest Temperature 114 | . 114 24 Average Temperature 37 | . 42 10 Received Heat Transfer 396 | . 36 360 Siege Activations . | . . . Robots Corrupted . | . . . Combat Hostiles . | . . . Parts Fried . | . . . Impact Corruptions . | . . . Robots Melted . | . . . Combat Hostiles . | . . . Parts Melted . | . . . Heat Transferred 100 | . 100 . Parts Sabotaged . | . . . Parts Stolen . | . . . Parts Stripped . | . . . Power Chain Reactions 3 | . 2 1 Alert | -11 -10 -9 ------- Run | Yrd Mat Mat Peak Influence 571 | . 258 571 Initial 108 | . . 108 Average 256 | . 167 325 Maximum Alert Level 2 | . 1 2 Low Security (%) 26 | 100 35 15 Level 1 57 | . 64 60 Level 2 15 | . . 24 Level 3 . | . . . Level 4 . | . . . Level 5 . | . . . High Security . | . . . Max Security . | . . . Squads Dispatched 3 | . 1 2 Investigation 1 | . . 1 Extermination . | . . . Reinforcement 2 | . 1 1 Assault . | . . . Garrison . | . . . Intercept . | . . . Searches Triggered . | . . . Construction Impeded 1 | . . 1 Haulers Reinforced . | . . . Active Scanning Responses . | . . . Cargo Convoy Interrupts . | . . . Stealth | -11 -10 -9 --------- Run | Yrd Mat Mat Distress Signals 4 | . 1 3 Communications Jammed . | . . . Distress Signals . | . . . Times Spotted 38 | . 12 26 Peak Tracking Total 5 | . 5 5 Tactical Retreats 1 | . 1 . Traps | -11 -10 -9 ------- Run | Yrd Mat Mat Traps Triggered 2 | . 1 1 Indirectly . | . . . Trap Hack Attempts . | . . . Triggered . | . . . Disarmed . | . . . Reprogrammed . | . . . Reused . | . . . Traps Extracted . | . . . Installed . | . . . Triggered 1 | . 1 . Machines | -11 -10 -9 ---------- Run | Yrd Mat Mat Machines Disabled 6 | . 1 5 Max in Single Turn 1 | . 1 1 Machines Repaired . | . . . Machines Dismantled . | . . . Machines Sabotaged . | . . . Overloaded Fab Kills . | . . . Hacking | -11 -10 -9 --------- Run | Yrd Mat Mat Machines Accessed 1 | . 1 . Terminals 1 | . 1 . Fabricators . | . . . Repair Stations . | . . . Recycling Units . | . . . Scanalyzers . | . . . Garrison Access . | . . . Total Hacks 1 | . 1 . Successful 1 | . 1 . Failed . | . . . Catastrophic . | . . . Database Lockouts . | . . . Manual . | . . . Terminals 1 | . 1 . Fabricators . | . . . Repair Stations . | . . . Recycling Units . | . . . Scanalyzers . | . . . Garrison Access . | . . . Terminal Hacks 1 | . 1 . Hauler Manifests 1 | . 1 . Fabricator Hacks . | . . . Repair Station Hacks . | . . . Recycling Unit Hacks . | . . . Scanalyzer . | . . . Garrison Access Hacks . | . . . Unauthorized Hacks . | . . . Terminals . | . . . Fabricators . | . . . Repair Stations . | . . . Recycling Units . | . . . Scanalyzers . | . . . Garrison Access . | . . . Data Cores Recovered . | . . . Used . | . . . Hacking Detections . | . . . Full Trace Events . | . . . Feedback Events . | . . . Feedback Blocked . | . . . Robot Schematics Acquired . | . . . Robots Built . | . . . Authchips . | . . . Time . | . . . Total Robot Build Rating . | . . . Part Schematics Acquired . | . . . Parts Built . | . . . Authchips . | . . . Time . | . . . Total Part Build Rating . | . . . Parts Repaired . | . . . Time . | . . . Parts Recycled . | . . . Recycled Matter . | . . . Retrieved Matter . | . . . Retrieved Components . | . . . Parts Scanalyzed . | . . . Part Schematics Acquired . | . . . Parts Damaged . | . . . Bothacking | -11 -10 -9 ------------ Run | Yrd Mat Mat Used RIF Installer . | . . . Robots Hacked . | . . . Non-combat . | . . . Combat . | . . . Robot Hacks Applied . | . . . Relay Couplers Released . | . . . Fabnet Peak Effective % . | . . . Robots Rewired . | . . . Allies Hacked . | . . . Hacks Repelled . | . . . Allies | -11 -10 -9 -------- Run | Yrd Mat Mat Total Allies . | . . . Largest Group . | . . . Highest-Rated Group . | . . . Highest-Rated Ally . | . . . Total Orders . | . . . Ally Attacks . | . . . Total Damage . | . . . Kills . | . . . Allies Corrupted . | . . . Allies Melted . | . . . Intel | -11 -10 -9 ------- Run | Yrd Mat Mat Robot Analysis Total . | . . . Derelict Logs Recovered . | . . . Drone Launches . | . . . Drone Recoveries . | . . . Exploration | -11 -10 -9 ------------- Run | Yrd Mat Mat Turns Passed 1248 | 73 395 780 Spaces Moved 685 | 61 262 362 Core 50 | 13 . 37 Treads . | . . . Legs 536 | 48 262 226 Wheels 99 | . . 99 Hover . | . . . Flight . | . . . Fastest Speed 50 | 50 120 100 Average Speed 148 | 105 120 175 Slowest Speed 400 | 120 120 400 Overloaded Moves . | . . . Propulsion Burnouts . | . . . Robots Hopped . | . . . Cave-ins Triggered . | . . . Exploration Rate (%) 23 | 3 33 33 Regions Visited 2 Branch Regions . Pre-discovered Areas . | . . . Known Exits Taken . | . . . Unknown Exits Taken 2 | 1 1 . Scrap Searched . | . . . Spaces Dug 7 | . . 7 Terrain Destroyed 226 | . 1 225 Melee . | . . . Projectile . | . . . AOE 226 | . 1 225 Terrain Rammed . | . . . Walls Destroyed . | . . . Machines Disabled . | . . . Actions | -11 -10 -9 --------- Run | Yrd Mat Mat Total 804 | 66 296 442 Wait . | . . . Move 683 | 60 261 362 Hop . | . . . Pick Up 16 | . 8 8 Fast Attach 16 | 6 3 7 Attach 8 | . . 8 Detach 2 | . . 2 Swap 3 | . . 3 Drop 2 | . . 2 Fire 70 | . 23 47 Melee . | . . . Ram . | . . . Kick 4 | . 1 3 Crush . | . . . Escape Stasis . | . . . Rewire . | . . . Trap . | . . . Miscellaneous . | . . . Route ------- -11/Scrapyard -10/Materials -9/Materials (discovered 1 exit: [*Sto]) History --------- Turn | Location | Event 13 | -11/Scrapyard | Discovered new exit (range 16) 74 | -11/Scrapyard | Entered Materials 303 | -10/Materials | Build established: Mutant 366 | -10/Materials | Discovered new exit (range 13) 469 | -10/Materials | Entered another Materials area 469 | -9/Materials | Evolved 2 slots: Propulsion x1, Utility x1 620 | -9/Materials | Lost 3 parts (2n1w) 698 | -9/Materials | Core integrity fell below 50% 719 | -9/Materials | Core integrity fell below 20% 744 | -9/Materials | Lost 5 parts (1p1n3w) 1161 | -9/Materials | Discovered new exit (range 16) 1249 | -9/Materials | Destroyed by G-47 Trooper with Particle Gun Last Messages --------------- U-05 Engineer lays Concrete. K-01 Serf collects debris. U-05 Engineer lays Concrete. K-01 Serf collects debris. U-05 Engineer builds a Wall. K-01 Serf collects debris. U-05 Engineer lays Concrete. Kicked K-01 Serf out of the way. K-01 Serf collects debris. U-05 Engineer builds a Wall. Acquired 33 matter. G-34 Mercenary destroyed. K-01 Serf destroyed. K-01 Serf sends out distress signal. The unstable cave ceiling collapses. K-01 Serf destroyed. G-34 Mercenary destroyed. Sensor Array destroyed. Kicked W-16 Scout. Mni. Grenade Launcher destroyed. Map ----- +----------------------------------------------------+ | ?????????????????????????????????????????????????? | | ?????????????????????????????????????????????????? | | ?????????????????????????????????????????????????? | | ?????????????????????????????????????????????????? | | ?????????????????????????????????????????????????? | | ?????????????????????????????????????????????????? | | ?????????????????????????????????????????????????? | | ?????????????????????????????????????????????????? | | ?????????????????????????????????????????????????? | | ?????????????????????????????????????????????????? | | ?????????????????????????????????????????????????? | | ?????????????????????????????????????????????????? | | ?????????????????????????????????????????????????? | | ?????????????a???????????????????????????????????? | | ?????????????????????????????????????????????????? | | ?????????????????????????????????????????????????? | | ?????????????????????????????????????????????????? | | ?????????????????????????????????????????????????? | | ?????????????????????????????????????????????????? | | ???????????????????????#######???????????????????? | | ??????#+######?????##### #???????????????????? | | ??????# ?????? #???????????????????? | | ??????# ??????? a < #???????????????????? | | ??????# ??????a? [ ##??????????????????? | | ??????# ##???????# ##?+##?????????????? | | ?????## [ ######### @ # #####?????????? | | ?????+ = # ????????? | | ?????# "" [mwr ????????? | | ?????# # ""S =g= ????????? | | ?????# # "" gg% !] #????????? | | ?????# = ]] #????????? | | ?????# """ ????????? | | ?#####+# """ # ### ????????? | | ?# """ # #?? ?????????? | | ?? """ #### # # #??? ####?????????? | | ???""""" #?## #????####????????????? | | ????"""" # #### #????????????????????? | | ???""""" # [ ^+ ?????????????????? | | ??? """ [ = #????????????????????? | | ?# # [= #????????????????????? | | ?# + #????????????????????? | | ?# # ! " #????????????????????? | | ?########?# +????????????????????? | | ?????????## #????????????????????? | | ?????????# "" " """ #????????????????????? | | ?????????# """ """ """ ##???+#??????????????? | | ?????????## " """ """ #### ???????????????? | | ?????????# ??#????????????? | | ?????????## + ??????????? | | ??????????# # ??????????? | +----------------------------------------------------+ Best States ------------- Heat Dissipation 28 Energy Generation 10 Energy Capacity 125 Matter Stores 300 Matter Capacity 300 Sight Range 16 Robot Scan Range 14 Terrain Scan Density 10 Evasion (%) 55 Item Schematics ----------------- None Robot Schematics ------------------ None Fabricated ------------ Nothing Alien Tech Used ----------------- None Achievements -------------- None Challenges ------------ None Game ------ Seed CloakCoolingFlail Manual? 0 Play Time 00:12:23 Cumulative 9.6 hours Start 2024.04.11 @ 13:08:18 End 2024.04.11 @ 13:19:51 Sessions 1 Manual Loads 0 Difficulty Rogue Special Mode None Game No. 39 Rogue 39 Adventurer 0 Explorer 0 Win Type - Total 0 Types 0/0/0/0/0/0/0/0/0 Lore% 11 Gallery% 14 Achievement% 13 Wizard Run 0 Options --------- Layout 1 ASCII 1 Keyboard 0 Movement Arrows Keybinds 0 Fullscreen 1 Font 18/SmallcapsGlow Map View 50x40 Zoom Use 0% Tactical HUD 0 Map Filters NONE Filters NONE Steam 1 RUN: 91157d50-acb2-4f41-b047-2c7766049832